[Event "Chinese League Division-A 2024"]
[Site "Fuling Chongqing"]
[Date "2024.07.01"]
[Round "5.5"]
[White "Hu, Yu A."]
[Black "Wang, Yu A."]
[Result "1/2-1/2"]
[ECO "E54"]
[WhiteElo "2127"]
[BlackElo "2234"]
[Annotator "TA"]
[PlyCount "80"]
[EventDate "2024.06.28"]
[EventType "team-tourn"]
[EventCountry "CHN"]
[SourceTitle "playchess.com"]
[Source "ChessBase"]
[SourceQuality "1"]
[TimeControl "40/5400+30:1800+30"]

{[%evp 21,80,0,42,5,-3,-1,0,0,0,0,0,0,2,0,0,-10,61,-25,23,8,4,0,37,14,19,55,145,143,141,102,123,111,117,120,198,206,218,210,191,114,116,122,125,65,70,49,41,40,41,41,78,57,64,81,73,33,62,54,70,30,35]} 1. Nf3 {[%emt 0:00:10]} Nf6 {[%emt 0:00:23]} 2. c4 {[%emt 0:01:19]} e6 {[%emt 0:00:35]} 3. d4 {[%emt 0:01:26]} Bb4+ {[%emt 0:00:17]} 4. Nc3 {[%emt 0:01:28]} c5 {[%emt 0:03:03]} 5. e3 {[%emt 0:11:59]} O-O {[%emt 0:01:10]} 6. Bd3 {[%emt 0:00:40]} d5 {[%emt 0:00:28]} 7. O-O {[%emt 0:02:36]} cxd4 {[%emt 0:00:24]} 8. exd4 {[%emt 0:00:09]} dxc4 {[%emt 0:00:08]} 9. Bxc4 {[%emt 0:00:07]} b6 {[%emt 0:00:24]} 10. Bg5 {[%emt 0:02:15]} Bb7 {[%emt 0:00:54]} 11. Ne5 {[%emt 0:03:36]} Nc6 {[%emt 0:24:09]} 12. Nxc6 {[%emt 0:15:34]} Bxc6 {[%emt 0:00:06]} 13. Qb3 {[%emt 0:15:27]} Bxc3 {[%emt 0:27:44]} (13... Be7 {keeps more tension.} 14. Bxe6 Qxd4 15. Rfd1 Qc5) 14. bxc3 {[%emt 0:00:08] The position is equal.} Rc8 {[%emt 0:00:32]} 15. Ba6 {[%emt 0:09:39]} Rc7 {[%emt 0:00:38]} 16. a4 {[%emt 0:06:59]} Qd6 {[%emt 0:18:32] Dodges Bf4} 17. Rfd1 {[%emt 0:05:56]} Ng4 {[%emt 0:08:06]} 18. g3 {[%emt 0:00:06]} Ba8 {[%emt 0:01:55]} (18... Bf3 $11) 19. c4 {[%emt 0:00:48]} ({Wrong is} 19. Bf4 $2 e5 (19... Qc6 20. d5 $15) 20. Be2 (20. dxe5 $2 Qc6 $19) 20... exf4 $19) (19. Be2 $1 $14 h6 20. Bc1) 19... Qc6 {[%emt 0:01:58]} (19... h6 $142 20. Bf4 e5) 20. d5 $36 {[%emt 0:00:08][%mdl 2048] White has some pressure.} exd5 {[%emt 0:00:29]} 21. cxd5 {[%emt 0:00:11]} Qg6 {[%emt 0:00:42]} 22. Bf4 {[%emt 0:00:31]} Qh5 {[%emt 0:00:49]} 23. h4 {[%emt 0:00:10]} (23. Bxc7 $2 {gets mated.} Qxh2+ 24. Kf1 Qxf2#) 23... Rd7 {[%emt 0:00:55]} (23... Ne5 $1 $14) 24. Be2 $16 {[%emt 0:00:49]} Qg6 {[%emt 0:01:36]} 25. Bb5 {[%emt 0:10:00] This pair of bishops is nice.} Rdd8 {[%emt 0:00:44]} 26. Rac1 {[%emt 0:04:38]} h6 {[%emt 0:02:41] [#]} 27. Bc6 $1 {[%emt 0:01:05]} Qh5 {[%emt 0:01:46]} (27... Rc8 $16 {keeps fighting.}) 28. Bc7 $18 {[%emt 0:01:36]} Rc8 {[%emt 0:01:08] [#]} 29. Bxa8 $1 {[%emt 0:00:58]} Rxa8 {[%emt 0:00:02]} 30. d6 {[%emt 0:00:06]} ({Better is} 30. Qf3 $18 {Threatens to win with d6.} Qg6 31. Rd4) 30... Qf5 $16 {[%emt 0:00:42]} 31. Qc2 {[%emt 0:01:01] Active counter play!} Qd7 {[%emt 0:00:18]} 32. Qc6 {[%emt 0:01:25]} ({White should play} 32. a5 $16) 32... Nf6 $14 {[%emt 0:00:28]} 33. Qxd7 {[%emt 0:00:31]} Nxd7 {[%emt 0:00:01]} 34. a5 {[%emt 0:00:31]} Rfe8 {[%emt 0:01:13]} 35. Rb1 {[%emt 0:00:48][%cal Ra5b6]} Re6 {[%emt 0:01:23]} 36. Ra1 {[%emt 0:01:56] aiming for axb6.} Rc8 {[%emt 0:01:10]} 37. axb6 {[%emt 0:00:36]} axb6 {[%emt 0:00:00]} 38. Ra7 {[%emt 0:00:12]} g6 {[%emt 0:01:01]} 39. Kg2 {[%emt 0:00:37]} Kg7 {[%emt 0:00:16]} 40. g4 {[%emt 0:00:00]} Rce8 {[%emt 0:00:00] Black defended with fortune.   Weighted Error Value: White=0.15 (very precise) /Black=0.21 (precise) .  Mistake:       	White=3     	Black=4      Inaccurate:     	White=2     	Black=3      OK:         	White=8     	Black=8      Best:        	White=3     	Black=1      Strong:       	White=2     	---} 1/2-1/2

[Event "Chinese League Division-A 2024"]
[Site "Fuling Chongqing"]
[Date "2024.07.01"]
[Round "5.6"]
[White "Xu, Yinglun"]
[Black "Xu, Yi"]
[Result "1/2-1/2"]
[ECO "D02"]
[WhiteElo "2526"]
[BlackElo "2496"]
[Annotator "TA"]
[PlyCount "62"]
[EventDate "2024.06.28"]
[EventType "team-tourn"]
[EventCountry "CHN"]
[SourceTitle "playchess.com"]
[Source "ChessBase"]
[SourceQuality "1"]
[TimeControl "40/5400+30:1800+30"]

{[%evp 9,62,-1,2,4,2,19,8,10,12,16,22,16,10,8,16,-3,0,-6,-3,0,0,0,0,0,0,0,10,0,0,0,0,0,0,0,0,0,0,0,0,0,16,0,0,0,0,0,0,0,0,0,0,0,0,0,0]} 1. d4 {[%emt 0:00:05]} Nf6 {[%emt 0:00:09]} 2. Bf4 {[%emt 0:00:29]} d5 {[%emt 0:01:06]} 3. e3 {[%emt 0:00:43]} c5 {[%emt 0:01:05]} 4. Nf3 {[%emt 0:00:15]} e6 {[%emt 0:02:01]} 5. Nbd2 {[%emt 0:01:43]} Qb6 {[%emt 0:01:50] The position is equal.} 6. Rb1 {[%emt 0:01:34]} Bd6 {[%emt 0:03:46]} 7. dxc5 {[%emt 0:02:02]} Qxc5 {[%emt 0:00:45]} 8. Bg5 {[%emt 0:07:38]} Be7 {[%emt 0:08:16]} 9. Bd3 {[%emt 0:05:10]} Nc6 {[%emt 0:01:01]} 10. O-O {[%emt 0:01:11]} O-O {[%emt 0:01:00]} 11. c3 {[%emt 0:01:43]} h6 {[%emt 0:01:50]} 12. b4 {[%emt 0:01:13]} Qd6 {[%emt 0:01:21]} ({Stronger than} 12... Qxc3 13. Rb3 $16) 13. Bh4 {[%emt 0:00:14]} Qd8 {[%emt 0:02:56]} 14. a3 {[%emt 0:01:17]} b6 {[%emt 0:00:53]} 15. Qe2 {[%emt 0:00:40]} Bb7 {[%emt 0:00:53]} 16. Rfd1 {[%emt 0:00:42]} Nh5 {[%emt 0:00:54]} 17. Bxe7 {[%emt 0:01:11]} Qxe7 {[%emt 0:00:27]} 18. c4 {[%emt 0:00:43]} Rfd8 {[%emt 0:01:39]} 19. cxd5 {[%emt 0:00:56]} Rxd5 {[%emt 0:00:59]} 20. Rbc1 {[%emt 0:00:47] [#] aiming for Be4.} (20. Be4 $5 Rd6 $8 21. b5 $11) 20... Nf6 {[%emt 0:00:56]} 21. Ne4 {[%emt 0:01:29]} Rad8 {[%emt 0:00:54]} 22. Nxf6+ {[%emt 0:00:29]} Qxf6 {[%emt 0:00:05]} 23. Be4 {[%emt 0:00:09]} Rxd1+ {[%emt 0:00:20]} 24. Rxd1 {[%emt 0:00:06]} a5 {[%emt 0:00:58]} 25. bxa5 {[%emt 0:00:37]} (25. Rc1 {keeps more tension.} Rc8 26. h3 Qe7 27. b5) 25... Nxa5 {[%emt 0:00:17]} 26. Rxd8+ {[%emt 0:00:27]} Qxd8 {[%emt 0:00:06]} 27. Bxb7 {[%emt 0:00:08]} Nxb7 $11 {[%emt 0:00:05] KQN-KQN} 28. h3 {[%emt 0:00:16]} Qe7 {[%emt 0:00:12]} 29. Qb5 {[%emt 0:00:10]} Qxa3 {[%emt 0:00:20]} 30. Qxb6 {[%emt 0:00:08]} Qc1+ {[%emt 0:00:21]} 31. Kh2 {[%emt 0:00:05]} Qc8 $1 {[%emt 0:00:08] An even fight not without its subleties.   Weighted Error Value: White=0.03 (flawless) /Black=0.02 (flawless) .  OK:         	White=14    	Black=10     Best:        	White=1     	---        Strong:       	---       	Black=1} 1/2-1/2

[Event "Chinese League Division-A 2024"]
[Site "Fuling Chongqing"]
[Date "2024.07.01"]
[Round "5.7"]
[White "Lou, Yiping"]
[Black "Xie, Kaifan"]
[Result "1/2-1/2"]
[ECO "D38"]
[WhiteElo "2442"]
[BlackElo "2376"]
[Annotator "TA"]
[PlyCount "63"]
[EventDate "2024.06.28"]
[EventType "team-tourn"]
[EventCountry "CHN"]
[SourceTitle "playchess.com"]
[Source "ChessBase"]
[SourceQuality "1"]
[TimeControl "40/5400+30:1800+30"]

{[%evp 12,63,27,18,14,13,26,8,4,0,15,7,14,0,0,0,0,0,0,0,0,0,0,0,0,0,0,0,0,0,0,-16,-11,-18,-11,-9,-9,-19,-29,-58,0,0,0,0,19,19,18,16,29,27,28,21,47,0]} 1. d4 {[%emt 0:00:06]} Nf6 {[%emt 0:00:18]} 2. c4 {[%emt 0:00:10]} e6 {[%emt 0:00:22]} 3. Nf3 {[%emt 0:00:07]} d5 {[%emt 0:00:39]} 4. Nc3 {[%emt 0:00:44]} Bb4 {[%emt 0:00:41]} 5. Qa4+ {[%emt 0:00:25]} Nc6 {[%emt 0:02:23]} 6. e3 {[%emt 0:00:09]} O-O {[%emt 0:00:40]} 7. Bd2 {[%emt 0:00:07]} dxc4 {[%emt 0:00:35]} 8. Bxc4 {[%emt 0:00:05]} Bd6 {[%emt 0:00:50]} 9. Nb5 {[%emt 0:00:16]} e5 {[%emt 0:01:24] The position is equal.} 10. Nxd6 {[%emt 0:00:21]} cxd6 {[%emt 0:01:24]} 11. dxe5 {[%emt 0:01:44]} dxe5 {[%emt 0:00:15]} 12. O-O {[%emt 0:00:25]} e4 {[%emt 0:00:36]} 13. Nd4 {[%emt 0:00:11]} Nxd4 {[%emt 0:00:06]} 14. exd4 {[%emt 0:00:06]} Qb6 {[%emt 0:03:47]} 15. Ba5 {[%emt 0:05:53] This pair of bishops is nice.} Bd7 $1 {[%emt 0:03:23]} 16. Qxd7 {[%emt 0:02:47]} Nxd7 {[%emt 0:06:34]} 17. Bxb6 {[%emt 0:00:07]} Nxb6 {[%emt 0:00:10]} 18. Bb3 {[%emt 0:03:15]} Rfd8 {[%emt 0:11:06]} 19. f3 {[%emt 0:06:00]} exf3 {[%emt 0:13:16]} 20. Rxf3 {[%emt 0:00:22]} Rd7 {[%emt 0:00:10]} 21. Re1 {[%emt 0:04:09]} g6 {[%emt 0:08:36]} 22. Kf2 {[%emt 0:08:44]} Kg7 {[%emt 0:01:18]} 23. Re4 {[%emt 0:01:43]} Rc8 {[%emt 0:04:43]} 24. Rc3 {[%emt 0:02:36]} Rcd8 {[%emt 0:01:04]} 25. Ke3 {[%emt 0:03:16]} Kf8 {[%emt 0:07:39]} ({Better is} 25... f5 $15 26. Re5 Rxd4) 26. g4 $11 {[%emt 0:01:52]} h6 {[%emt 0:03:01]} 27. Rc5 {[%emt 0:03:43]} Rd6 {[%emt 0:12:46]} 28. h4 {[%emt 0:01:53]} R8d7 {[%emt 0:01:16]} 29. a4 {[%emt 0:03:17]} Nd5+ {[%emt 0:02:23]} 30. Bxd5 {[%emt 0:03:02]} Rxd5 {[%emt 0:00:01]} 31. Rxd5 {[%emt 0:00:28]} Rxd5 {[%emt 0:00:03]} 32. Re5 {[%emt 0:00:34] Weighted Error Value: White=0.05 (flawless) /Black=0.04 (flawless) .  Mistake:       	White=1     	Black=1      Inaccurate:     	White=1     	Black=1      OK:         	White=7     	Black=13     Strong:       	---       	Black=1} (32. Kd3 $14) 1/2-1/2

[Event "Chinese League Division-A 2024"]
[Site "Fuling Chongqing"]
[Date "2024.07.01"]
[Round "5.8"]
[White "Wu, Yixing"]
[Black "Meng, Yihan"]
[Result "1/2-1/2"]
[ECO "D28"]
[WhiteElo "2326"]
[BlackElo "2268"]
[Annotator "TA"]
[PlyCount "41"]
[EventDate "2024.06.28"]
[EventType "team-tourn"]
[EventCountry "CHN"]
[SourceTitle "playchess.com"]
[Source "ChessBase"]
[SourceQuality "1"]
[TimeControl "40/5400+30:1800+30"]

{[%evp 19,41,22,22,3,8,0,0,0,0,0,4,6,20,13,27,12,3,17,38,0,38,19,37,0]} 1. d4 {[%emt 0:00:03]} d5 {[%emt 0:00:06]} 2. Nf3 {[%emt 0:00:05]} Nf6 {[%emt 0:00:05]} 3. c4 {[%emt 0:00:05]} dxc4 {[%emt 0:00:04]} 4. e3 {[%emt 0:00:05]} e6 {[%emt 0:00:05]} 5. Bxc4 {[%emt 0:00:06]} c5 {[%emt 0:00:05]} 6. O-O {[%emt 0:00:06]} a6 {[%emt 0:00:05]} 7. Qe2 {[%emt 0:00:05]} b5 {[%emt 0:01:36]} 8. Bd3 {[%emt 0:00:08]} Nbd7 {[%emt 0:00:10]} 9. a4 {[%emt 0:00:29]} c4 {[%emt 0:01:26]} 10. Bc2 {[%emt 0:00:04]} Bb7 {[%emt 0:00:04]} 11. e4 {[%emt 0:00:15]} Be7 {[%emt 0:03:33]} 12. Nc3 {[%emt 0:01:34]} b4 {[%emt 0:11:40]} 13. e5 {[%emt 0:00:25] The position is equal.} bxc3 {[%emt 0:00:30]} 14. exf6 {[%emt 0:00:08]} Nxf6 {[%emt 0:02:03]} 15. bxc3 {[%emt 0:00:08]} Qd5 {[%emt 0:00:44]} 16. Bf4 {[%emt 0:15:57]} Qh5 {[%emt 0:11:43]} 17. Rfb1 {[%emt 0:02:03]} Bd5 {[%emt 0:13:56]} 18. Bd1 {[%emt 0:08:50]} Be4 {[%emt 0:10:28]} 19. Bc2 {[%emt 0:31:10]} Bd5 {[%emt 0:08:13]} 20. Qe3 {[%emt 0:10:40]} Ng4 {[%emt 0:02:36]} 21. Qe2 {[%emt 0:01:51] Weighted Error Value: White=0.11 (very precise) /Black=0.05 (flawless) .  Inaccurate:     	White=1     	---        OK:         	White=4     	Black=6} 1/2-1/2

[Event "Chinese League Division-A 2024"]
[Site "Fuling Chongqing"]
[Date "2024.07.01"]
[Round "5.9"]
[White "Ju, Wenjun"]
[Black "Wang, Qinxuanyi"]
[Result "1-0"]
[ECO "A07"]
[WhiteElo "2558"]
[BlackElo "2149"]
[Annotator "TA"]
[PlyCount "67"]
[EventDate "2024.06.28"]
[EventType "team-tourn"]
[EventCountry "CHN"]
[SourceTitle "playchess.com"]
[Source "ChessBase"]
[SourceQuality "1"]
[TimeControl "40/5400+30:1800+30"]

{[%evp 10,67,15,8,54,57,60,52,52,43,60,51,58,61,60,54,60,49,59,54,63,57,69,70,74,31,122,102,131,106,118,97,115,110,115,115,139,58,56,48,71,23,22,21,209,207,147,29,187,137,147,42,326,83,504,487,450,0,704,697]} 1. Nf3 {[%emt 0:00:08]} d5 {[%emt 0:00:11]} 2. g3 {[%emt 0:00:02]} Nf6 {[%emt 0:00:15]} 3. Bg2 {[%emt 0:00:03]} c6 {[%emt 0:00:11]} 4. O-O {[%emt 0:00:29]} Bf5 {[%emt 0:01:22]} 5. d3 {[%emt 0:00:05]} Nbd7 {[%emt 0:00:41]} 6. Nh4 {[%emt 0:10:57]} Bg6 {[%emt 0:01:28]} (6... Be6 $11) 7. Nxg6 $14 {[%emt 0:10:11]} hxg6 {[%emt 0:00:10]} 8. Nd2 {[%emt 0:00:04]} e6 {[%emt 0:03:18] White is slightly better.} 9. e4 {[%emt 0:00:55]} dxe4 {[%emt 0:02:31]} 10. dxe4 {[%emt 0:00:11]} Be7 {[%emt 0:01:44]} 11. Qe2 {[%emt 0:00:36]} Qc7 {[%emt 0:10:10]} 12. a4 {[%emt 0:05:55]} O-O {[%emt 0:04:14]} 13. f4 {[%emt 0:03:20]} Rfd8 {[%emt 0:02:59]} 14. Kh1 {[%emt 0:04:50]} Rac8 {[%emt 0:12:06]} 15. b3 {[%emt 0:04:22]} a5 {[%emt 0:06:08]} 16. Bb2 {[%emt 0:00:16]} b5 {[%emt 0:01:55][%cal Bb7b5,Bb5b4][%mdl 32]} 17. Nf3 {[%emt 0:17:15]} (17. axb5 $6 cxb5 18. Rfc1 Qb6 $15) 17... Bf8 {[%emt 0:07:48]} (17... Bb4 $14) 18. Ng5 {[%emt 0:08:15]} (18. axb5 $6 cxb5 19. Nd4 e5 20. fxe5 (20. Nxb5 Qxc2 21. Rf2 Qxe2 $15) 20... Nxe5 $14) 18... b4 {[%emt 0:04:48]} 19. e5 {[%emt 0:09:29]} Nh7 {[%emt 0:06:51]} 20. Ne4 {[%emt 0:01:38] White is much more active.} Nb6 {[%emt 0:04:25]} 21. g4 $36 {[%emt 0:01:40][%mdl 2048] White has strong initiative.} c5 {[%emt 0:01:37]} 22. c4 {[%emt 0:06:16] Black must now prevent Rf2.} bxc3 {[%emt 0:00:19]} 23. Nxc3 {[%emt 0:01:03]} (23. Bxc3 $16 Nd5 24. Bd2) 23... c4 {[%emt 0:02:00]} 24. Nb5 {[%emt 0:00:03]} Qb8 {[%emt 0:00:28]} 25. bxc4 {[%emt 0:00:25]} (25. Rf3 $16) 25... Rxc4 $11 {[%emt 0:02:41]} 26. f5 {[%emt 0:02:33]} Rdc8 $2 {[%emt 0:08:17]} (26... Rxa4 $11 {and Black has nothing to worry.} 27. Rxa4 Nxa4 28. fxg6 fxg6) 27. fxg6 $18 {[%emt 0:04:42]} fxg6 {[%emt 0:00:07]} 28. Rac1 {[%emt 0:00:37] Repels Rc2} (28. Nd4 $1 $16 {[%cal Rd4e6]} Nxa4 29. Rab1) 28... Ng5 {[%emt 0:06:02]} (28... Rxa4 $11 {and Black is okay.} 29. Rb1 Nc4) 29. Rxc4 {[%emt 0:01:54]} (29. Nd4 $1 $18 {[%cal Rd4c6]}) 29... Rxc4 $16 {[%emt 0:00:58] [#]} 30. Bd4 {[%emt 0:00:23] A strong pair of Bishops.} (30. Bc1 $1 $16 {[%cal Rc1g5]} Nh7 (30... Nf7 $2 31. Be3 $16) 31. Nd6 Rxa4 (31... Bxd6 32. exd6 Qxd6 33. Be3 $18) 32. Qf3) 30... Rxa4 $2 {[%emt 0:02:48][%mdl 8192] [#]} (30... Bc5 $14 31. Bxc5 Rxc5) 31. Qe3 $2 {[%emt 0:00:02]} (31. Qc2 $1 $18 {is the precise move to win.}) 31... Nd5 $2 {[%emt 0:01:29][%mdl 8192]} (31... Nd7 $16 32. Nc3 Rxd4 33. Qxd4 Qxe5 34. Qxe5 Nxe5) 32. Qxg5 $18 {[%emt 0:01:23]} Qxb5 {[%emt 0:00:06]} 33. Qd8 $2 {[%emt 0:01:13]} (33. Qxg6 $1 $18 Nf6 34. Rxf6 Rxd4 35. Qf7+ Kh8 (35... Kh7 36. Rh6+ Kxh6 37. Qh5#) 36. Qxf8+ Kh7 37. Rf3 (37. Rxe6 {gets mated.} Rd1+)) 33... Qb4 $2 {[%emt 0:01:34][%mdl 8192]} (33... Qxf1+ $11 34. Bxf1 Rxd4) 34. Qe8 {[%emt 0:01:09] Weighted Error Value: White=0.52/Black=0.73.  Loses game:     	---       	Black=4      Missed win:     	White=2     	---        Mistake:       	White=5     	Black=2      Inaccurate:     	White=1     	---        OK:         	White=9     	Black=5      Best:        	White=3     	Black=3} 1-0

[Event "Chinese League Division-A 2024"]
[Site "Fuling Chongqing"]
[Date "2024.07.01"]
[Round "5.10"]
[White "Liu, Manli"]
[Black "Ni, Shiqun"]
[Result "1/2-1/2"]
[ECO "C07"]
[WhiteElo "2056"]
[BlackElo "2352"]
[Annotator "TA"]
[PlyCount "78"]
[EventDate "2024.06.28"]
[EventType "team-tourn"]
[EventCountry "CHN"]
[SourceTitle "playchess.com"]
[Source "ChessBase"]
[SourceQuality "1"]
[TimeControl "40/5400+30:1800+30"]

{[%evp 22,78,11,9,24,14,12,22,13,0,7,8,17,11,8,0,0,8,6,1,0,0,0,0,0,0,0,0,0,0,0,0,0,0,0,-8,-8,-21,-20,-22,-25,-85,-86,-86,-86,-86,-63,-86,-81,-86,-86,-86,-86,-86,-86,-86,-86,-86,-86]} 1. e4 {[%emt 0:00:03]} e6 {[%emt 0:00:11]} 2. d4 {[%emt 0:00:14]} d5 {[%emt 0:00:03]} 3. Nd2 {[%emt 0:00:16]} c5 {[%emt 0:00:06]} 4. exd5 {[%emt 0:00:23]} Qxd5 {[%emt 0:00:06]} 5. Ngf3 {[%emt 0:00:11]} cxd4 {[%emt 0:00:06]} 6. Bc4 {[%emt 0:00:27]} Qd6 {[%emt 0:00:25]} 7. O-O {[%emt 0:00:40]} Nf6 {[%emt 0:00:23]} 8. Nb3 {[%emt 0:00:34]} Nc6 {[%emt 0:00:09]} 9. Nbxd4 {[%emt 0:02:10]} Nxd4 {[%emt 0:00:07]} 10. Qxd4 {[%emt 0:02:04]} Qxd4 11. Nxd4 {[%emt 0:00:07]} Bd7 {[%emt 0:00:22]} 12. c3 {[%emt 0:01:28]} Rc8 {[%emt 0:04:06]} 13. Be2 {[%emt 0:02:36]} Bc5 {[%emt 0:00:24]} 14. Rd1 {[%emt 0:03:45]} e5 {[%emt 0:14:06] The position is equal.} 15. Nc2 {[%emt 0:21:56]} O-O {[%emt 0:14:33]} 16. Be3 {[%emt 0:01:21]} Bxe3 {[%emt 0:01:04]} 17. Nxe3 {[%emt 0:00:06]} Be6 {[%emt 0:00:08]} 18. Bf3 {[%emt 0:06:34]} e4 {[%emt 0:01:26]} 19. Be2 {[%emt 0:00:09]} Rfd8 {[%emt 0:00:09]} 20. f3 {[%emt 0:00:40]} exf3 {[%emt 0:19:06]} 21. Bxf3 {[%emt 0:00:07]} b6 {[%emt 0:00:04]} 22. Kf2 {[%emt 0:00:22]} Kf8 {[%emt 0:00:17]} 23. Ke2 {[%emt 0:01:28]} Ke7 {[%emt 0:00:16]} 24. Rxd8 {[%emt 0:02:02]} Rxd8 {[%emt 0:01:55]} 25. b3 {[%emt 0:04:50]} g5 {[%emt 0:04:21]} 26. g3 {[%emt 0:02:10]} h5 {[%emt 0:04:23]} 27. Rd1 {[%emt 0:03:28]} Rxd1 {[%emt 0:00:07]} 28. Kxd1 $11 {[%emt 0:00:30][%mdl 4096] Endgame. KBN-KBN} Kd6 {[%emt 0:03:08]} 29. Kd2 {[%emt 0:02:40]} Ke5 {[%emt 0:10:10]} 30. Kd3 {[%emt 0:02:57]} Ng4 {[%emt 0:00:42]} 31. Bxg4 {[%emt 0:18:26]} (31. Ke2 $11 {remains equal.}) 31... hxg4 {[%emt 0:01:53] KB-KN} 32. Nd1 {[%emt 0:00:13]} Bf5+ {[%emt 0:05:14]} 33. Kd2 {[%emt 0:00:18]} Bb1 {[%emt 0:05:20][%cal Oe5e4]} 34. Nf2 {[%emt 0:00:20]} f5 {[%emt 0:00:03] Black is better.} (34... Bxa2 35. Nxg4+ Kf5 36. Ne3+ (36. Nh6+ $2 Kg6 $19) 36... Ke4 37. h4 $15) 35. a4 {[%emt 0:02:57]} Be4 {[%emt 0:01:20]} 36. Kc1 {[%emt 0:00:19]} Bd5 {[%emt 0:04:15]} 37. Kb2 {[%emt 0:00:09]} Bc6 {[%emt 0:00:17]} 38. Ka3 {[%emt 0:01:55]} a5 {[%emt 0:00:49]} 39. Kb2 {[%emt 0:00:19]} Bb7 {[%emt 0:00:21] Weighted Error Value: White=0.07 (flawless) /Black=0.02 (flawless) .  Mistake:       	White=1     	---        OK:         	White=12    	Black=12} 1/2-1/2

[Event "Chinese League Division-A 2024"]
[Site "Fuling Chongqing"]
[Date "2024.07.01"]
[Round "5.11"]
[White "Wang, Hao"]
[Black "Wan, Yunguo"]
[Result "1-0"]
[ECO "B45"]
[WhiteElo "2702"]
[BlackElo "2498"]
[Annotator "TA"]
[PlyCount "95"]
[EventDate "2024.06.28"]
[EventType "team-tourn"]
[EventCountry "CHN"]
[SourceTitle "playchess.com"]
[Source "ChessBase"]
[SourceQuality "1"]
[TimeControl "40/5400+30:1800+30"]

{[%evp 15,95,23,20,27,23,36,42,-3,-11,-17,-16,-16,0,-12,0,-23,20,10,0,0,0,16,18,23,22,0,0,0,20,19,23,18,16,18,13,17,46,37,30,39,54,49,220,227,224,239,235,173,330,184,197,183,200,187,211,206,184,179,589,579,693,689,675,645,1158,1112,885,880,846,736,665,666,834,820,1147,1062,6719,6452,29970,29971,29961,29939]} 1. e4 {[%emt 0:00:03]} c5 {[%emt 0:00:16]} 2. Nf3 {[%emt 0:00:07]} e6 {[%emt 0:00:38]} 3. d4 {[%emt 0:00:05]} cxd4 {[%emt 0:00:23]} 4. Nxd4 {[%emt 0:00:05]} Nf6 {[%emt 0:00:15][%cal Bg8f6,Bf6d5,Bd5b4][%mdl 32]} 5. Nc3 {[%emt 0:00:05]} Nc6 {[%emt 0:00:05]} 6. Nxc6 {[%emt 0:00:04]} bxc6 {[%emt 0:00:15]} 7. e5 {[%emt 0:00:03]} Nd5 {[%emt 0:00:18]} 8. Ne4 {[%emt 0:00:05]} Bb7 {[%emt 0:01:47]} 9. Bd3 {[%emt 0:00:34]} c5 {[%emt 0:09:20]} 10. c4 {[%emt 0:03:21]} Nb4 {[%emt 0:00:45]} 11. Bb1 {[%emt 0:00:38] White is slightly better.} Nc6 $1 {[%emt 0:01:14]} 12. Bf4 {[%emt 0:12:00]} Qa5+ {[%emt 0:12:10]} 13. Qd2 {[%emt 0:04:17]} Qxd2+ {[%emt 0:02:05]} 14. Kxd2 {[%emt 0:00:41]} Be7 {[%emt 0:00:09]} 15. h4 {[%emt 0:15:17]} f6 {[%emt 0:06:40]} 16. exf6 {[%emt 0:03:51]} gxf6 {[%emt 0:00:05]} 17. Nd6+ {[%emt 0:00:05]} Bxd6 {[%emt 0:00:07]} 18. Bxd6 {[%emt 0:00:04][%cal Oh1d1]} Ne5 {[%emt 0:02:23]} 19. Kc3 {[%emt 0:01:04][%cal Of2f4]} Rc8 {[%emt 0:18:48]} ({Of course not} 19... Bxg2 $6 20. Rg1 Bf3 21. Rg7 $16) 20. Bc2 {[%emt 0:08:18]} Nf7 {[%emt 0:03:17]} 21. Bf4 {[%emt 0:00:54]} Bxg2 {[%emt 0:04:00]} 22. Rhg1 {[%emt 0:00:08]} Bf3 {[%emt 0:00:08]} 23. Rg7 {[%emt 0:05:05]} f5 {[%emt 0:06:43]} 24. Rag1 {[%emt 0:01:23]} Kf8 {[%emt 0:14:00]} 25. Ba4 {[%emt 0:04:48]} Bg4 {[%emt 0:01:48]} 26. R7xg4 {[%emt 0:00:29]} fxg4 {[%emt 0:00:07]} 27. Bxd7 {[%emt 0:00:04]} Rd8 {[%emt 0:00:09]} 28. Bxe6 {[%emt 0:00:06][%cal Of4e3] Black must now prevent Be3!} Nd6 $2 {[%emt 0:06:49] Black cannot hold the game after this.} (28... h5 $14) 29. Rxg4 {[%emt 0:07:24]} Ne4+ {[%emt 0:02:44]} 30. Kc2 $1 {[%emt 0:00:09]} Nf6 {[%emt 0:05:41]} 31. Rg3 {[%emt 0:09:04] Ra3 would now be deadly.} h6 $2 {[%emt 0:00:10]} (31... Ke7 {was called for.} 32. Bf5 Rhe8) 32. Bc7 {[%emt 0:01:48]} (32. Ra3 $142) 32... Ke7 $18 {[%emt 0:00:08]} 33. Bf5 {[%emt 0:03:51] And now Re3+ would win.} (33. Bxd8+ Rxd8 34. Re3 Rd4) 33... Rd4 {[%emt 0:01:19]} 34. Re3+ {[%emt 0:09:25]} Kf7 {[%emt 0:00:10]} 35. Be6+ {[%emt 0:00:04]} Ke7 {[%emt 0:00:26][%cal Oh8e8] [#]} 36. Be5 $1 {[%emt 0:00:22]} Rxh4 $2 {[%emt 0:01:16] [#]} (36... Rhd8 {is tougher.}) 37. Bd5 $1 {[%emt 0:00:05]} Ng4 {[%emt 0:01:49]} 38. Bxh8+ {[%emt 0:00:52] A strong pair of Bishops.} Nxe3+ {[%emt 0:00:04]} 39. fxe3 {[%emt 0:00:05][%cal Bf2e3,Be3e4,Be4e5][%mdl 32]} h5 {[%emt 0:00:09][%cal Bh6h5,Bh5h4][%mdl 32]} 40. e4 {[%emt 0:00:00]} Rf4 {[%emt 0:00:00]} 41. e5 {[%emt 0:02:02]} h4 {[%emt 0:00:31]} 42. Bf6+ {[%emt 0:00:16]} Ke8 {[%emt 0:00:47]} 43. Be6 {[%emt 0:05:43]} Rf2+ {[%emt 0:06:17]} 44. Kd1 {[%emt 0:00:39]} Rxb2 {[%emt 0:00:37]} 45. Bxh4 {[%emt 0:01:41]} Rxa2 {[%emt 0:00:08]} 46. Bd5 {[%emt 0:00:24] Intending e6 and mate.} Ra6 {[%emt 0:00:45]} 47. e6 {[%emt 0:00:20]} Rb6 {[%emt 0:00:22]} 48. Bf2 {[%emt 0:00:35] Weighted Error Value: White=0.11 (very precise) /Black=0.51.  Loses game:     	---       	Black=1      Mistake:       	White=1     	Black=2      Inaccurate:     	White=1     	Black=2      OK:         	White=12    	Black=11     Best:        	White=3     	Black=5      Strong:       	White=3     	Black=1} 1-0